bitfinex/quotes_SOLUSD_20250226
["timestamp","ask_amount","ask_price","bid_price","bid_amount"]
[1740604505409,62.07361803,135.78,135.77,0.03]
[1740604505932,18.64964886,135.77,135.74,0.063]
[1740604506139,36.78906273,135.74,135.68,0.063]
[1740604506436,54.9709277,135.72,135.68,0.063]
[1740604506639,37.34900634,135.71,135.68,0.063]
[1740604506934,18.64964886,135.7,135.68,0.063]
[1740604507147,0.77690798,135.69,135.68,0.063]
[1740604507333,19.42655684,135.69,135.68,0.063]
[1740604507540,18.64964886,135.69,135.68,0.063]
[1740604508039,55.1013808,135.69,135.68,0.063]
[1740604508739,55.87828878,135.69,135.68,0.063]
[1740604509649,36.90930478,135.73,135.68,0.063]
[1740604509846,0.77690798,135.72,135.68,0.063]
[1740604510145,19.42655684,135.72,135.68,0.063]
[1740604510645,36.97671867,135.76,135.68,0.063]
[1740604510827,0.77690798,135.77,135.68,6.3527]
[1740604511032,18.64964886,135.76,135.68,6.3527]
[1740604511235,0.77690798,135.75,135.68,6.3527]
[1740604511439,36.39987231,135.81,135.69,8.9]
[1740604511630,1.5378,135.9,135.73,1.585]
[1740604511631,0.83990798,135.84,135.73,1.585]
[1740604512030,0.063,135.84,135.75,7.0332]
[1740604512329,0.063,135.84,135.76,9.9]
[1740604512527,0.063,135.84,135.76,8.9]
[1740604512744,0.063,135.84,135.77,20.19573757]
[1740604512942,0.063,135.84,135.77,1.54608871]
[1740604513125,0.063,135.84,135.76,8.9]
[1740604514821,0.77690798,135.83,135.75,14.9332]
[1740604515026,101.54964886,135.82,135.73,1.585]
[1740604515227,18.64964886,135.8,135.7,6.358]
[1740604515525,0.83990798,135.84,135.71,18.64964886]
[1740604515844,0.063,135.84,135.71,18.64964886]
[1740604516158,0.063,135.84,135.74,1.5176]
[1740604516341,0.063,135.84,135.75,8.9]
[1740604516651,0.063,135.84,135.76,18.64964886]
[1740604516822,0.063,135.84,135.75,145.7]
[1740604518119,0.063,135.84,135.75,91.3]
[1740604518320,0.063,135.84,135.77,6.4457]
[1740604518548,0.063,135.84,135.78,18.64964886]
[1740604519624,0.063,135.84,135.77,225.6457]
[1740604519920,0.063,135.84,135.77,234.5457]
[1740604522443,0.063,135.84,135.77,15.3457]
[1740604526139,0.063,135.84,135.77,97.7457]
[1740604526841,18.64964886,135.82,135.77,6.4457]
[1740604527229,82.9,135.83,135.77,6.4457]
[1740604527740,102.32655684,135.82,135.74,1.5176]
[1740604527943,6.79791852,135.81,135.74,1.5176]
[1740604528142,18.64964886,135.79,135.74,1.5176]
[1740604528543,82.9,135.78,135.74,1.5176]
[1740604529249,82.9,135.78,135.73,6.3705]
[1740604530355,6.86091852,135.84,135.73,6.3705]
[1740604530356,0.063,135.84,135.75,1.0]
[1740604530654,0.063,135.84,135.78,6.3887]
[1740604530853,0.063,135.84,135.78,88.7887]
[1740604531447,0.063,135.84,135.78,89.7887]
[1740604531752,0.063,135.84,135.79,18.64964886]
[1740604531930,82.9,135.9,135.8,1.54559573]
[1740604532133,6.79791852,135.94,135.78,88.7887]
[1740604532134,82.9,135.89,135.81,8.88]
[1740604532860,0.063,135.84,135.78,15.2687]
[1740604533533,82.9,135.83,135.78,15.2687]
[1740604534152,82.9,135.83,135.78,6.3887]
[1740604535055,0.063,135.84,135.78,6.3887]
[1740604535258,0.063,135.84,135.78,88.7887]
[1740604535558,0.063,135.84,135.78,91.33457415]
[1740604536055,0.063,135.84,135.78,89.7887]
[1740604536966,0.063,135.84,135.79,18.64964886]
[1740604537142,0.063,135.84,135.8,8.88]
[1740604537539,82.9,135.92,135.82,1.5325]
[1740604537739,3.67,135.93,135.84,6.4774]
[1740604538051,3.67,135.93,135.88,1.6215]
[1740604538360,3.67,135.93,135.89,8.88]
[1740604542375,138.40829781,135.92,135.83,8.88]
[1740604542553,18.64964886,135.9,135.8,1.6237]
[1740604542756,16.4548265,135.92,135.8,1.6237]
[1740604542757,18.64964886,135.88,135.8,1.6237]
[1740604543053,82.9,135.87,135.8,1.6237]
[1740604543257,18.64964886,135.86,135.8,1.6237]
[1740604543572,0.77690798,135.85,135.78,8.88]
[1740604544242,0.77690798,135.85,135.76,124.22]
[1740604544444,101.54964886,135.84,135.76,124.22]
[1740604544967,101.54964886,135.84,135.78,0.03]
[1740604545165,0.77690798,135.83,135.78,0.03]
[1740604545369,82.9,135.84,135.78,0.03]
[1740604545777,101.54964886,135.83,135.78,0.03]
[1740604545948,18.64964886,135.81,135.78,0.03]
[1740604547471,18.64964886,135.79,135.78,0.03]
[1740604549169,19.42655684,135.81,135.78,0.03]
[1740604549377,18.64964886,135.79,135.78,0.03]
[1740604549687,26.22447536,135.79,135.78,0.03]
[1740604549883,62.62485318,135.79,135.78,0.03]
[1740604550049,62.62485318,135.79,135.71,0.03]
[1740604550444,18.64964886,135.77,135.71,0.03]
[1740604550761,18.64964886,135.75,135.71,0.03]
[1740604551461,37.34809579,135.77,135.71,0.03]
[1740604551673,36.40037782,135.79,135.71,0.03]
[1740604551975,82.9,135.78,135.71,0.03]
[1740604552351,6.79791852,135.82,135.73,6.4249]
[1740604552578,82.9,135.87,135.74,1.6047]
[1740604552764,82.9,135.86,135.74,1.6047]
[1740604553165,18.64964886,135.85,135.74,1.6047]
[1740604553675,18.64964886,135.85,135.73,6.4249]
[1740604553676,18.64964886,135.83,135.73,6.4249]
[1740604553861,18.64964886,135.81,135.73,6.4249]
[1740604554065,18.64964886,135.79,135.73,6.4249]
[1740604554262,101.54964886,135.79,135.73,6.4249]
[1740604554663,82.9,135.79,135.73,6.4249]
[1740604555669,80.844723,135.79,135.73,6.4249]
[1740604556579,80.844723,135.79,135.74,0.03]
[1740604557206,18.64964886,135.78,135.74,0.03]
[1740604558374,18.64964886,135.76,135.74,0.03]
[1740604558553,100.27127984,135.75,135.74,0.03]
[1740604558757,19.42655684,135.75,135.74,0.03]
[1740604560368,56.24699348,135.75,135.74,0.03]
[1740604562077,63.044912,135.75,135.74,0.03]
[1740604562890,63.044912,135.75,135.71,0.03]
[1740604563190,54.9709277,135.72,135.71,0.03]
[1740604563394,55.74783568,135.72,135.71,0.03]
[1740604563773,54.9709277,135.72,135.71,0.03]
[1740604564718,61.76884622,135.72,135.68,0.063]
[1740604564899,55.4788162,135.7,135.68,0.063]
[1740604565192,36.86541775,135.67,135.64,0.063]
[1740604565382,35.08447536,135.67,135.64,0.063]
[1740604566294,55.35543252,135.66,135.64,0.063]
[1740604566593,37.15053562,135.65,135.64,0.063]
[1740604566899,55.80018448,135.65,135.64,0.063]
[1740604567203,55.28396528,135.64,135.61,0.063]
[1740604567370,18.64964886,135.62,135.61,0.063]
[1740604567766,55.52698084,135.62,135.61,0.063]
[1740604567971,18.64964886,135.6,135.57,0.03]
[1740604568195,9.63690798,135.59,135.57,0.03]
[1740604568381,18.64964886,135.58,135.57,0.03]
[1740604569896,55.46238998,135.58,135.57,0.03]
[1740604570102,18.64964886,135.58,135.57,0.03]
[1740604570289,55.46238998,135.58,135.51,0.8687107]
[1740604570471,55.17558417,135.55,135.51,0.8687107]
[1740604570678,55.95249215,135.55,135.51,0.8687107]
[1740604571288,57.98032298,135.55,135.51,0.8687107]
[1740604572092,36.82333254,135.53,135.51,0.8687107]
[1740604572306,65.10988938,135.53,135.41,6.9762107]
[1740604572484,36.38495989,135.51,135.41,6.9762107]
[1740604572689,55.43462862,135.5,135.41,6.9762107]
[1740604573790,55.55003338,135.48,135.41,6.9762107]
[1740604573995,18.64964886,135.46,135.41,6.9762107]
[1740604574177,82.9,135.45,135.41,6.9762107]
[1740604575690,82.9,135.45,135.41,0.8687107]
[1740604575691,18.64964886,135.44,135.41,0.8687107]
[1740604576201,18.64964886,135.42,135.41,0.8687107]
[1740604577299,82.9,135.43,135.41,0.8687107]
[1740604577502,101.54964886,135.42,135.41,0.8687107]
[1740604578288,18.64964886,135.42,135.41,0.8687107]
[1740604578580,37.07726862,135.45,135.33,6.6265]
[1740604578581,54.73245752,135.41,135.33,6.6265]
[1740604578904,0.77690798,135.4,135.33,6.6265]
[1740604579100,18.64964886,135.39,135.33,6.6265]
[1740604579486,45.71971664,135.41,135.3,2.4980107]
[1740604579711,18.64964886,135.4,135.3,2.4980107]
[1740604579896,18.64964886,135.4,135.3,1.9980107]
[1740604580094,0.77690798,135.39,135.3,1.9980107]
[1740604580700,18.64964886,135.4,135.3,2.2182107]
[1740604580897,18.64964886,135.4,135.3,1.9980107]
[1740604581601,18.64964886,135.4,135.3,2.2182107]
[1740604581812,6.79791852,135.44,135.35,0.2202]
[1740604581986,43.18287841,135.51,135.37,1.5651]
[1740604582189,55.55003338,135.48,135.37,1.5651]
[1740604582385,55.45743336,135.46,135.37,1.5651]
[1740604582704,0.77690798,135.45,135.37,1.5651]
[1740604582909,101.54964886,135.44,135.33,7.6964]
[1740604583102,18.64964886,135.42,135.33,7.6964]
[1740604583286,18.64964886,135.4,135.33,7.6964]
[1740604583815,82.9,135.42,135.34,0.2202]
[1740604583986,0.99,136.56,135.35,0.2202]
[1740604583987,36.90038452,135.48,135.35,0.2202]
[1740604584311,36.90038452,135.48,135.34,19.64964886]
[1740604584312,82.9,135.47,135.36,0.2202]
[1740604584609,82.9,135.47,135.39,7.8574]
[1740604584816,82.9,135.47,135.39,8.0776]
[1740604585109,82.9,135.47,135.39,7.8574]
[1740604586307,101.54964886,135.46,135.39,7.8574]
[1740604586897,18.64964886,135.44,135.39,7.8574]
[1740604587103,82.9,135.43,135.39,7.8574]
[1740604587486,82.9,135.48,135.39,7.8574]
[1740604587698,82.9,135.47,135.39,7.8574]
[1740604587920,82.9,135.49,135.4,8.86]
[1740604588094,36.31849889,135.54,135.42,1.2202]
[1740604588293,82.9,135.53,135.42,1.2202]
[1740604588515,101.54964886,135.52,135.4,8.86]
[1740604588698,18.64964886,135.5,135.4,9.86]
[1740604588906,82.9,135.54,135.44,0.2202]
[1740604589214,18.64964886,135.53,135.45,8.1528]
[1740604590189,19.42655684,135.53,135.45,7.6528]
[1740604590526,18.64964886,135.53,135.45,7.6528]
[1740604591027,82.9,135.54,135.46,9.0802]
[1740604591523,82.9,135.54,135.47,0.2202]
[1740604591690,18.71264886,135.56,135.47,0.2202]
[1740604591889,18.71264886,135.56,135.46,10.0802]
[1740604592201,82.9,135.55,135.45,16.5128]
[1740604592804,0.063,135.54,135.45,16.5128]
[1740604593116,19.48955684,135.54,135.45,16.5128]
[1740604593591,18.64964886,135.52,135.45,16.5128]
[1740604593790,18.64964886,135.5,135.45,16.5128]
[1740604593994,82.9,135.53,135.45,16.733]
[1740604594199,0.063,135.54,135.48,1.2202]
[1740604594421,0.063,135.54,135.47,1.0]
[1740604594607,0.063,135.54,135.46,219.2]
[1740604594911,0.063,135.54,135.48,1.2202]
[1740604595488,0.063,135.54,135.46,219.4202]
[1740604595688,0.063,135.54,135.46,220.4202]
[1740604596119,0.063,135.54,135.47,0.2202]
[1740604596318,0.063,135.54,135.46,219.4202]
[1740604596720,18.71264886,135.54,135.45,7.6528]
[1740604596892,18.64964886,135.52,135.45,7.6528]
[1740604597292,18.64964886,135.5,135.45,7.6528]
[1740604598299,82.9,135.51,135.45,7.6528]
[1740604598508,18.64964886,135.5,135.45,7.6528]
[1740604598827,82.9,135.51,135.45,7.6528]
[1740604599710,0.063,135.54,135.46,0.2202]
[1740604600107,0.063,135.54,135.47,0.2202]
[1740604600508,0.063,135.54,135.45,154.533]
[1740604600716,0.063,135.54,135.47,0.2202]
[1740604600925,0.063,135.54,135.49,0.2202]
[1740604601104,0.063,135.54,135.5,6.33]
[1740604603113,0.063,135.54,135.51,1.6653]
[1740604603308,0.063,135.54,135.51,93.9053]
[1740604603524,0.063,135.56,135.52,0.2202]
[1740604603696,0.063,135.56,135.54,1.2202]
[1740604604032,82.9,135.65,135.56,0.2202]
[1740604604421,82.9,135.65,135.56,1.2202]
[1740604604626,82.9,135.65,135.55,6.3833]
[1740604604801,82.9,135.65,135.55,7.3833]
[1740604604997,18.64964886,135.64,135.55,6.3833]
[1740604605721,18.64964886,135.62,135.55,6.3833]
[1740604605905,18.64964886,135.6,135.55,6.3833]
[1740604606521,82.9,135.61,135.55,6.3833]
[1740604606711,82.9,135.66,135.55,6.6035]
[1740604606912,18.64964886,135.64,135.55,6.3833]
[1740604607139,18.64964886,135.62,135.55,6.3833]
[1740604607444,18.64964886,135.62,135.51,10.5053]
[1740604607944,18.64964886,135.6,135.51,1.6653]
[1740604608235,18.64964886,135.58,135.48,124.52]
[1740604608438,18.64964886,135.56,135.48,124.52]
[1740604609709,82.9,135.57,135.5,0.2202]
[1740604610318,18.64964886,135.6,135.51,0.2202]
[1740604610536,18.64964886,135.6,135.51,6.5587]
[1740604610722,82.9,135.61,135.51,143.5789]
[1740604610927,89.69791852,135.64,135.55,1.8285]
[1740604611249,83.7687107,135.67,135.55,1.8285]
[1740604611543,18.64964886,135.66,135.56,0.2202]
[1740604612249,18.64964886,135.66,135.57,0.2202]
[1740604612413,18.64964886,135.66,135.56,1.2202]
[1740604612613,18.64964886,135.66,135.57,0.2202]
[1740604613445,82.9,135.65,135.55,1.6083]
[1740604613639,101.54964886,135.64,135.55,1.6083]
[1740604613842,18.64964886,135.62,135.55,1.6083]
[1740604614643,83.67690798,135.61,135.51,15.3987]
[1740604614841,18.64964886,135.59,135.51,15.3987]
[1740604616248,82.9,135.58,135.51,15.3987]
[1740604619037,82.9,135.58,135.51,99.0189]
[1740604619233,82.9,135.61,135.52,1.2202]
[1740604619425,82.9,135.61,135.53,1.2202]
[1740604619624,82.9,135.61,135.54,1.0]
[1740604620148,36.63431642,135.64,135.54,220.2]
[1740604620436,82.9,135.66,135.56,0.2202]
[1740604620640,83.7687107,135.67,135.59,6.2738]
[1740604620825,83.7687107,135.67,135.59,88.6738]
[1740604621017,83.7687107,135.67,135.59,88.894]
[1740604621220,18.64964886,135.66,135.59,88.6738]
[1740604621437,82.9,135.65,135.58,1.5597]
[1740604621636,138.96087326,135.64,135.55,6.4516]
[1740604621845,18.64964886,135.62,135.55,6.4516]
[1740604622028,18.64964886,135.62,135.48,139.56900857]
[1740604622029,82.9,135.61,135.51,6.4516]
[1740604622238,18.64964886,135.59,135.51,6.4516]
[1740604622539,18.64964886,135.57,135.51,6.4516]
[1740604622746,82.9,135.56,135.51,6.4516]
[1740604623845,82.9,135.56,135.51,5.9516]
[1740604624235,82.9,135.59,135.51,89.5718]
[1740604624436,82.9,135.62,135.52,9.0402]
[1740604624635,82.9,135.61,135.53,18.86984886]
[1740604625143,82.9,135.6,135.52,8.82]
[1740604625457,82.9,135.6,135.53,18.64964886]
[1740604625655,82.9,135.63,135.55,0.2202]
[1740604625826,18.64964886,135.61,135.53,82.4]
[1740604626028,82.9,135.6,135.52,8.82]
[1740604626945,82.9,135.65,135.56,0.2202]
[1740604627144,82.9,135.65,135.58,1.6417]
[1740604627450,82.9,135.65,135.58,10.4617]
[1740604629952,18.64964886,135.64,135.58,10.4617]
[1740604630159,18.64964886,135.62,135.53,1.5157]
[1740604630358,18.64964886,135.6,135.51,5.9516]
[1740604630549,18.64964886,135.58,135.49,1.5732]
[1740604630856,18.64964886,135.56,135.46,213.14]
[1740604631055,18.64964886,135.54,135.46,124.46]
[1740604632558,18.64964886,135.54,135.44,10.4232]
[1740604632559,18.64964886,135.52,135.44,0.03]
[1740604632758,18.64964886,135.5,135.44,0.03]
[1740604632931,18.64964886,135.48,135.44,0.03]
[1740604635051,82.9,135.47,135.44,0.03]
[1740604635239,101.54964886,135.46,135.44,0.03]
[1740604635955,82.9,135.46,135.44,0.03]
[1740604636361,101.54964886,135.45,135.44,0.03]
[1740604638760,82.9,135.45,135.44,0.03]
[1740604639732,82.9,135.49,135.44,0.03]
[1740604641355,101.54964886,135.48,135.44,0.03]
[1740604641655,18.64964886,135.46,135.44,0.03]
[1740604641849,19.42655684,135.45,135.44,0.03]
[1740604643241,25.48205684,135.45,135.44,0.03]
[1740604644160,61.89176238,135.44,135.41,0.03]
[1740604644335,54.69572229,135.42,135.41,0.03]
[1740604644531,54.69572229,135.42,135.39,0.03]
[1740604644532,55.19547815,135.4,135.39,0.03]
[1740604644858,62.77030465,135.4,135.39,0.03]
[1740604645352,55.56797952,135.38,135.31,0.03]
[1740604645563,54.74933821,135.36,135.31,0.03]
[1740604645759,61.48599973,135.34,135.31,0.03]
[1740604646058,18.64964886,135.32,135.31,0.03]
[1740604647860,55.41438649,135.32,135.31,0.03]
[1740604648358,63.78110501,135.32,135.27,0.03]
[1740604648656,54.88709186,135.3,135.27,0.03]
[1740604648961,55.52579213,135.28,135.27,0.03]
[1740604650843,55.37533215,135.26,135.19,0.8687107]
[1740604651163,18.64964886,135.21,135.19,0.8687107]
[1740604651347,193.01195951,135.2,135.19,0.8687107]
[1740604651554,193.01195951,135.2,135.09,0.8687107]
[1740604651555,37.79368141,135.18,135.09,0.8687107]
[1740604651738,18.64964886,135.19,135.09,0.8687107]
[1740604651739,0.77690798,135.17,135.09,0.8687107]
[1740604652061,18.64964886,135.16,135.09,0.8687107]
[1740604652251,0.77690798,135.15,135.09,0.8687107]
[1740604652563,82.9,135.14,135.09,0.8687107]
[1740604652749,82.9,135.13,135.09,0.8687107]
[1740604652947,9.59690798,135.22,135.11,0.2202]
[1740604652948,82.9,135.21,135.11,0.2202]
[1740604653252,18.64964886,135.19,135.1,8.82]
[1740604653455,82.9,135.2,135.1,8.82]
[1740604653456,83.67690798,135.2,135.1,8.82]
[1740604653657,82.9,135.2,135.11,19.64964886]
[1740604653957,82.9,135.2,135.11,18.64964886]
[1740604654346,82.9,135.2,135.12,0.2202]
[1740604654551,120.22319805,135.24,135.14,18.86984886]
[1740604654752,82.9,135.23,135.14,101.04964886]
[1740604654953,82.9,135.23,135.14,82.4]
[1740604655451,82.9,135.23,135.15,18.64964886]
[1740604655952,102.32655684,135.22,135.13,1.6386]
[1740604656156,82.9,135.21,135.09,0.8687107]
[1740604656470,82.9,135.2,135.09,0.8687107]
[1740604656677,18.64964886,135.19,135.09,0.8687107]
[1740604656843,82.9,135.18,135.1,18.64964886]
[1740604657172,18.64964886,135.2,135.09,83.2687107]
[1740604657472,18.64964886,135.2,135.1,18.64964886]
[1740604658465,82.9,135.21,135.1,18.64964886]
[1740604658968,82.9,135.21,135.1,19.64964886]
[1740604659276,82.9,135.21,135.1,102.26984886]
[1740604659443,82.9,135.21,135.12,0.2202]
[1740604659650,8.82,135.24,135.14,0.2202]
[1740604659847,82.9,135.23,135.14,18.64964886]
[1740604660175,82.9,135.23,135.13,82.6202]
[1740604660345,82.9,135.23,135.14,18.64964886]
[1740604660972,101.54964886,135.22,135.11,91.22]
[1740604661175,82.9,135.21,135.11,92.22]
[1740604661349,82.9,135.23,135.14,0.2202]
[1740604661671,82.9,135.22,135.15,18.64964886]
[1740604661870,82.9,135.22,135.16,6.4813]
[1740604662969,82.9,135.21,135.16,6.4813]
[1740604664476,82.9,135.21,135.16,6.5113]
[1740604665176,0.063,135.22,135.17,18.64964886]
[1740604665360,0.063,135.22,135.17,111.70884886]
[1740604666176,0.063,135.22,135.17,112.70884886]
[1740604666980,0.063,135.22,135.17,111.48864886]
[1740604667182,0.063,135.22,135.17,1.619]
[1740604668185,82.9,135.21,135.17,1.619]
[1740604669179,82.9,135.21,135.16,6.5113]
[1740604669180,82.9,135.21,135.16,0.03]
[1740604671872,18.64964886,135.19,135.09,133.5881107]
[1740604672063,82.9,135.18,135.09,133.5881107]
[1740604672387,82.9,135.18,135.09,142.4081107]
[1740604672884,82.9,135.18,135.1,18.64964886]
[1740604673381,82.9,135.18,135.09,142.4081107]
[1740604673682,81.9,135.18,135.09,142.4081107]
[1740604673887,62.70565293,135.21,135.09,142.4081107]
[1740604673888,100.54964886,135.17,135.09,142.4081107]
[1740604674090,100.54964886,135.17,135.09,133.5015107]
[1740604674288,100.54964886,135.17,135.09,133.47984881]
[1740604674664,81.9,135.16,135.09,133.47984881]
[1740604674984,81.9,135.17,135.09,133.47984881]
[1740604675281,81.9,135.17,135.1,18.64964886]
[1740604675479,81.9,135.17,135.09,133.47984881]
[1740604676675,81.9,135.17,135.09,133.70004881]
[1740604676981,81.9,135.17,135.1,18.64964886]
[1740604678083,81.9,135.17,135.09,8.69984881]
[1740604678978,81.9,135.19,135.1,19.64964886]
[1740604679366,81.9,135.19,135.1,18.64964886]
[1740604679569,81.9,135.18,135.1,18.64964886]
[1740604679793,81.9,135.18,135.1,19.86984886]
[1740604680086,81.9,135.18,135.1,19.64964886]
[1740604680292,81.9,135.18,135.1,18.64964886]
[1740604680460,81.9,135.18,135.09,91.09984881]
[1740604680661,81.9,135.18,135.11,0.2202]
[1740604680863,81.9,135.18,135.12,18.64964886]
[1740604681064,81.9,135.18,135.09,91.09984881]
[1740604681362,81.9,135.17,135.09,8.69984881]
[1740604681585,81.9,135.16,135.09,8.69984881]
[1740604681791,81.9,135.16,135.1,18.64964886]
[1740604681962,81.9,135.2,135.12,18.64964886]
[1740604682164,81.9,135.19,135.12,19.86984886]
[1740604682476,81.9,135.21,135.14,18.64964886]
[1740604682683,0.063,135.22,135.17,6.0722]
[1740604682989,0.063,135.22,135.18,18.64964886]
[1740604683291,0.063,135.22,135.19,8.82]
[1740604684387,0.063,135.22,135.2,18.64964886]
[1740604685077,0.063,135.22,135.19,91.22]
[1740604685263,0.063,135.22,135.19,90.72]
[1740604685587,0.063,135.22,135.2,18.64964886]
[1740604685796,0.063,135.22,135.19,90.72]
[1740604686089,81.9,135.21,135.17,6.0722]
[1740604686389,81.9,135.2,135.15,124.82]
[1740604686761,81.9,135.19,135.11,1.6396]
[1740604686991,81.9,135.18,135.11,1.6396]
[1740604687166,81.9,135.18,135.11,20.28924886]
[1740604687366,81.9,135.18,135.12,18.64964886]
[1740604687690,81.9,135.21,135.12,18.64964886]
[1740604687990,18.64964886,135.2,135.11,84.0396]
[1740604688172,18.64964886,135.18,135.09,0.76044881]
[1740604688373,18.64964886,135.18,135.09,0.79044881]
[1740604688575,90.7,135.19,135.1,20.29364886]
[1740604688785,90.7,135.19,135.1,1.644]
[1740604689084,81.9,135.19,135.11,18.64964886]
[1740604690400,81.9,135.21,135.14,18.64964886]
[1740604690693,0.063,135.22,135.14,101.04964886]
[1740604691076,0.063,135.22,135.14,82.4]
[1740604691958,0.063,135.22,135.16,1.2202]
[1740604692176,0.063,135.22,135.18,20.30424886]
[1740604692392,0.063,135.22,135.19,8.8]
[1740604692770,0.063,135.22,135.18,82.4]
[1740604692965,81.9,135.21,135.15,8.8]
[1740604693186,81.9,135.2,135.13,1.581]
[1740604693785,81.9,135.2,135.1,97.4841]
[1740604694094,81.9,135.2,135.1,8.8]
[1740604694095,81.9,135.19,135.1,8.8]
[1740604694284,82.67690798,135.18,135.09,2.29764881]
[1740604694482,81.9,135.18,135.09,2.29764881]
[1740604694876,81.9,135.18,135.1,18.64964886]
[1740604695072,81.9,135.18,135.09,2.29764881]
[1740604695475,81.9,135.17,135.09,2.29764881]
[1740604695799,81.9,135.16,135.09,0.79044881]
[1740604695977,81.9,135.15,135.09,0.79044881]
[1740604697069,81.9,135.17,135.1,18.64964886]
[1740604697493,81.9,135.16,135.09,0.79044881]
[1740604698593,81.9,135.15,135.09,0.79044881]
[1740604699500,81.9,135.14,135.09,0.79044881]
[1740604700001,0.063,135.19,135.11,1.2202]
[1740604700186,0.063,135.19,135.13,18.64964886]
[1740604700577,0.063,135.19,135.12,8.8]
[1740604700991,81.9,135.18,135.12,8.8]
[1740604701393,81.9,135.17,135.12,8.8]
[1740604701590,81.9,135.16,135.09,0.79044881]
[1740604701879,81.9,135.15,135.09,0.79044881]
[1740604702086,81.9,135.14,135.09,0.79044881]
[1740604704298,81.9,135.13,135.09,0.79044881]
[1740604704599,81.9,135.17,135.09,0.79044881]
[1740604704803,81.9,135.16,135.09,0.79044881]
[1740604705500,6.292,135.14,135.09,0.79044881]
[1740604705684,18.64964886,135.12,135.09,0.79044881]
[1740604706297,82.67690798,135.13,135.09,0.79044881]
[1740604707682,137.58397367,135.12,135.09,0.79044881]
[1740604707910,137.58397367,135.12,135.05,0.03]
[1740604707911,82.67690798,135.11,135.05,0.03]
[1740604708084,25.44756738,135.1,135.05,0.03]
[1740604708281,18.64964886,135.08,135.05,0.03]
[1740604708489,82.67690798,135.07,135.05,0.03]
[1740604708791,100.54964886,135.06,135.05,0.03]
[1740604708981,81.9,135.06,135.0,9.56]
[1740604709182,81.9,135.09,135.0,9.56]
[1740604709498,81.9,135.08,135.0,9.56]
[1740604710005,81.9,135.07,135.0,9.56]
[1740604710498,81.9,135.1,135.01,18.64964886]
[1740604710691,81.9,135.1,135.01,8.8]
[1740604711091,81.9,135.1,135.02,18.64964886]
[1740604711294,81.9,135.1,135.01,9.8]
[1740604711486,81.9,135.13,135.02,18.86984886]
[1740604711687,81.9,135.13,135.05,20.20264886]
[1740604711891,81.9,135.16,135.06,1.2202]
[1740604712181,81.9,135.15,135.07,8.8]
[1740604713014,81.9,135.15,135.05,7.9692]
[1740604713213,101.32655684,135.14,135.05,1.553]
[1740604713413,114.63017536,135.14,135.03,8.8]
[1740604713707,127.7950379,135.13,135.01,7.7156]
[1740604713905,19.42655684,135.12,135.01,7.7156]
[1740604716111,0.77690798,135.12,135.01,8.7156]
[1740604716315,81.9,135.11,135.02,19.64964886]
[1740604716613,81.9,135.14,135.02,240.40412158]
[1740604716819,81.9,135.13,135.02,238.84964886]
[1740604717001,81.9,135.13,135.04,1.0]
[1740604717194,81.9,135.13,135.04,9.8]
[1740604718803,81.9,135.12,135.04,91.2]
[1740604719111,81.9,135.12,135.04,8.8]
[1740604720602,81.9,135.14,135.05,18.64964886]
[1740604720904,81.9,135.14,135.05,101.04964886]
[1740604721110,81.9,135.16,135.06,3.35377092]
[1740604721316,81.9,135.16,135.08,18.64964886]